[Event "2nd Late Dr Abul K C Chess-ch B 2022"]
[Site "Dhaka"]
[Date "2022.07.06"]
[Round "7.1"]
[White "Md, Azmaeen Parvez Sayor"]
[Black "Tutul, Dhar"]
[Result "0-1"]
[ECO "B15"]
[WhiteElo "1924"]
[BlackElo "1945"]
[Annotator "TA"]
[PlyCount "94"]
[EventDate "2022.07.03"]
[EventCountry "BAN"]
[SourceTitle "playchess.com"]
[Source "ChessBase"]
[SourceQuality "1"]
[TimeControl "5400+30"]

{[%evp 17,94,20,29,8,10,-14,0,-64,-60,-64,-66,-56,-33,-62,-63,-70,-71,-121,-121,-163,-170,-204,-191,-172,-139,-143,-118,-207,0,-247,-182,-222,-245,-221,-169,-158,-146,-173,-155,-390,-377,-368,-315,-310,-296,-280,-280,-284,-272,-295,-297,-368,-397,-383,-374,-537,-532,-530,-541,-937,-477,-778,-768,-960,-920,-918,-933,-2825,-2781,-29980,-1492,-4316,-3876,-29988,-29989,-29989,-29986,-29986,-29987]} 1. e4 {[%emt 0:00:02]} c6 {[%emt 0:00:06]} 2. d4 {[%emt 0:00:04]} d5 {[%emt 0:00:06]} 3. Nc3 {[%emt 0:00:24]} dxe4 {[%emt 0:00:08]} 4. Nxe4 {[%emt 0:00:06]} Nf6 {[%emt 0:00:10]} 5. Nxf6+ {[%emt 0:00:10]} exf6 {[%emt 0:00:02]} 6. c3 {[%emt 0:00:20]} Bd6 {[%emt 0:00:05]} 7. Bd3 {[%emt 0:00:05]} O-O {[%emt 0:00:08]} 8. Qc2 {[%emt 0:00:06]} Re8+ {[%emt 0:03:09]} 9. Ne2 {[%emt 0:00:28]} g6 {[%emt 0:05:51]} 10. O-O {[%emt 0:00:35] B15: Caro-Kann: 3 Nc3: 3...g6 and 3...dxe4 4 Nxe4 Nf6 5 Nxf6+ exf6.} Nd7 {[%emt 0:01:17]} (10... Na6 {seems wilder.} 11. Bh6 Nc7 12. Qd2 Ne6) 11. Bd2 {[%emt 0:00:28]} (11. Bh6 {looks sharper.} Nf8 12. Rfe1 Bd7 13. h3) 11... Qc7 {[%emt 0:01:27]} 12. f4 {[%emt 0:00:31]} (12. Ng3 $11) 12... f5 $15 {[%emt 0:00:31]} 13. c4 {[%emt 0:02:20]} Nf6 {[%emt 0:03:57] [#]} 14. Rae1 $146 {[%emt 0:02:55]} ({Predecessor:} 14. Nc3 Bd7 15. g3 Ng4 16. Rfe1 Rxe1+ 17. Rxe1 Re8 18. Rxe8+ Bxe8 19. Bf1 Qe7 20. Qd3 {0-1 (49) Woller,R-Wolke,H Mecklenburg VP 1999}) 14... a6 {[%emt 0:04:19]} 15. Qc1 {[%emt 0:02:38]} Bd7 {[%emt 0:03:06][%cal Bc8d7,Bd7e6,Be6d5][%mdl 32]} 16. Nc3 {[%emt 0:01:40]} b5 {[%emt 0:02:35]} 17. c5 {[%emt 0:01:10]} ({Better is} 17. h3) 17... Bf8 {[%emt 0:00:54]} 18. Bc2 {[%emt 0:02:21]} Be6 {[%emt 0:01:24]} 19. Nd1 {[%emt 0:08:48]} Bg7 {[%emt 0:02:09]} ({And not} 19... Bxa2 20. b3 $15) 20. b3 {[%emt 0:08:06]} Bd5 {[%emt 0:04:26]} 21. Nf2 {[%emt 0:03:04]} Rad8 {[%emt 0:05:15] Black is more active.} 22. Qa3 {[%emt 0:03:11]} (22. Bc3 $17) 22... Ra8 $2 {[%emt 0:01:06] [#]} ({Black should play} 22... Nh5 $19 23. g3 Bxd4 24. Rxe8+ Rxe8) 23. Nd3 {[%emt 0:05:39]} (23. Qc1 $1 $11 {and White stays safe.}) 23... Be4 {[%emt 0:01:51]} 24. Qb2 {[%emt 0:02:29]} Bxd3 {[%emt 0:00:14]} 25. Bxd3 {[%emt 0:00:30]} Nd5 {[%emt 0:00:02][%cal Bf6d5,Bd5c7,Bc7e6,Be6c5,Bc5e4,Be4g5,Bg5f3][%mdl 32]} 26. g3 {[%emt 0:01:51]} Qd7 {[%emt 0:00:41]} 27. Kg2 {[%emt 0:01:42]} Nc7 {[%emt 0:02:03]} 28. Re5 $2 {[%emt 0:04:27] Now White is beyond hope.} (28. Bc3 $17) 28... Bxe5 $19 {[%emt 0:01:41]} 29. fxe5 {[%emt 0:00:10]} Ne6 {[%emt 0:00:30]} 30. Be3 {[%emt 0:01:42]} Nxc5 {[%emt 0:06:47]} 31. Be2 {[%emt 0:00:40]} Ne4 {[%emt 0:01:13]} 32. Bf3 {[%emt 0:01:39]} Re6 {[%emt 0:01:24]} 33. g4 {[%emt 0:00:59]} Rd8 {[%emt 0:04:44][%cal Of5f4]} 34. b4 {[%emt 0:01:08]} f4 {[%emt 0:07:10]} 35. Bg1 {[%emt 0:02:09]} Ng5 {[%emt 0:00:27]} 36. Qc1 {[%emt 0:00:28]} (36. Qc3 {was worth a try.}) 36... Nxf3 {[%emt 0:00:24]} 37. Rxf3 {[%emt 0:00:06]} g5 {[%emt 0:00:32]} 38. h4 {[%emt 0:00:31]} h6 {[%emt 0:00:09]} 39. hxg5 {[%emt 0:01:17]} (39. Qc2 $142 Qd5 40. Bf2) 39... hxg5 {[%emt 0:00:01]} 40. Rh3 {[%emt 0:00:56]} Qd5+ {[%emt 0:00:11]} 41. Kf1 {[%emt 0:00:35]} Kg7 {[%emt 0:02:31] [#] And now ...Rh8 would win.} 42. Rh5 {[%emt 0:03:10]} Qf3+ {[%emt 0:00:10]} 43. Bf2 {[%emt 0:00:01]} Qxg4 {[%emt 0:00:30]} (43... Rxd4 $142 44. Rxg5+ Rg6 45. Rxg6+ fxg6 46. Qc2 Rd1+ 47. Qxd1 Qxd1+ 48. Be1 g5 49. Kf2 Qd3 50. Kg1 f3 51. Bg3 Qd1+ 52. Be1 Qxe1+ 53. Kh2 Qf2+ 54. Kh3 Qh4#) 44. Rh1 {[%emt 0:00:07]} Qf3 {[%emt 0:00:36][%csl LRd4,LRh1]} 45. Rg1 {[%emt 0:00:28]} Rxd4 {[%emt 0:04:12] Black mates.} 46. Rxg5+ {[%emt 0:02:06]} Rg6 {[%emt 0:00:06]} 47. Rxg6+ {[%emt 0:00:43]} fxg6 {[%emt 0:00:10] Weighted Error Value: White=1.13/Black=0.46} 0-1

[Event "2nd Late Dr Abul K C Chess-ch B 2022"]
[Site "Dhaka"]
[Date "2022.07.06"]
[Round "7.2"]
[White "Shatadru Shovan, Dey"]
[Black "Ahmed, Feroz"]
[Result "0-1"]
[ECO "A01"]
[WhiteElo "1892"]
[BlackElo "1976"]
[Annotator "TA"]
[PlyCount "98"]
[EventDate "2022.07.03"]
[EventCountry "BAN"]
[SourceTitle "playchess.com"]
[Source "ChessBase"]
[SourceQuality "1"]
[TimeControl "5400+30"]

{[%evp 9,98,2,0,-26,-27,-79,-26,-21,-31,-49,-18,-31,-10,-10,26,25,31,0,-3,-56,-63,-103,-117,-108,-75,-75,-40,-45,0,-9,-25,0,-15,-32,-32,-136,-144,-126,-140,-160,-158,-157,-122,-134,-116,-121,-134,-177,-169,-203,-198,-269,-246,-278,-245,-272,-260,-268,-265,-352,-328,-385,-383,-432,-385,-475,-475,-472,-463,-473,-447,-679,-644,-923,-604,-762,-520,-548,0,-707,0,-556,-545,-1195,-797,-1252,-1193,-1109,-1100,-2823,-1711]} 1. b3 {[%emt 0:00:04]} e5 {[%emt 0:00:12]} 2. Bb2 {[%emt 0:00:05]} Nc6 {[%emt 0:01:26]} 3. c4 {[%emt 0:00:09]} g6 {[%emt 0:05:35]} 4. g3 {[%emt 0:02:41]} Bg7 {[%emt 0:00:12]} 5. Bg2 {[%emt 0:00:08]} Nge7 {[%emt 0:00:24]} 6. e3 {[%emt 0:00:10] A01: Nimzowitsch-Larsen Opening.} d5 {[%emt 0:02:03]} 7. d3 {[%emt 0:00:36]} (7. Ne2 $11) 7... O-O {[%emt 0:02:30]} (7... dxc4 $17 {Threatens to win with ...Nb4.} 8. bxc4 Nb4) 8. Ne2 $11 {[%emt 0:00:25] [#] Black has an edge.} dxc4 $146 {[%emt 0:06:08]} ({Predecessor:} 8... Bg4 9. h3 Be6 10. a3 a5 11. Nd2 Qd7 12. Qc2 Rfd8 13. Rd1 {½-½ (13) Drazic,S (2345)-Petrusic,V (2128) Novi Sad 2020}) 9. bxc4 {[%emt 0:01:47]} Nb4 {[%emt 0:00:24]} 10. Nc1 {[%emt 0:02:45]} c5 {[%emt 0:00:34]} 11. O-O {[%emt 0:00:23]} Bf5 {[%emt 0:01:58]} 12. e4 {[%emt 0:01:21]} Be6 {[%emt 0:00:09]} 13. a3 {[%emt 0:00:07]} Nbc6 {[%emt 0:00:18]} 14. Ne2 {[%emt 0:00:23]} (14. Nc3 $11) 14... f5 $15 {[%emt 0:05:10]} 15. f4 {[%emt 0:02:48]} fxe4 {[%emt 0:03:40]} 16. Bxe4 {[%emt 0:00:16]} Bh3 {[%emt 0:01:30]} 17. Rf2 {[%emt 0:01:43]} Qd7 {[%emt 0:01:49]} 18. Nd2 {[%emt 0:05:29]} Nf5 {[%emt 0:03:00]} 19. Bd5+ {[%emt 0:02:22]} Kh8 {[%emt 0:00:26]} 20. Ne4 {[%emt 0:00:10]} Ne3 {[%emt 0:07:19][%csl LRd1,LRd5]} 21. Bxc6 {[%emt 0:12:52]} Qxc6 {[%emt 0:03:11]} ({Much less strong is} 21... Nxd1 22. Bxd7 Nxf2 23. Bxh3 Nxd3 24. Bxe5 Nxe5 25. fxe5 $14) 22. Qd2 {[%emt 0:01:02] [#]} (22. Qb3 $15) 22... Nxc4 $1 $17 {[%emt 0:53:32][%mdl 512] Black is more active.} 23. dxc4 {[%emt 0:11:42] And now N2c3 would win.} Qxe4 {[%emt 0:00:00]} 24. Qd5 {[%emt 0:01:39]} Qxd5 {[%emt 0:00:00]} 25. cxd5 {[%emt 0:00:09]} Rfe8 {[%emt 0:00:00]} 26. fxe5 {[%emt 0:05:31]} Bxe5 {[%emt 0:00:00]} 27. Nf4 {[%emt 0:00:23]} Bd7 {[%emt 0:00:00]} 28. Rd1 {[%emt 0:13:03]} c4 {[%emt 0:00:00]} 29. Rc1 {[%emt 0:02:37]} Rac8 {[%emt 0:00:00]} 30. Bc3 {[%emt 0:02:41]} (30. Re2 $142 c3 31. Ba1) 30... b5 {[%emt 0:00:00]} 31. Kg2 {[%emt 0:03:34]} Kg8 {[%emt 0:00:00]} 32. Bb4 {[%emt 0:01:14]} Ra8 {[%emt 0:00:00]} 33. Ba5 {[%emt 0:02:06]} Bd6 {[%emt 0:00:00]} 34. a4 {[%emt 0:01:05]} a6 {[%emt 0:00:00]} 35. Re2 {[%emt 0:03:30]} Bg4 {[%emt 0:00:00]} 36. Ree1 {[%emt 0:07:43]} Ba3 {[%emt 0:00:00]} 37. Rc2 {[%emt 0:03:18]} Rxe1 {[%emt 0:00:00]} 38. Bxe1 {[%emt 0:00:05]} Re8 {[%emt 0:00:00]} 39. Ba5 {[%emt 0:03:50]} g5 {[%emt 0:00:00]} 40. Nh3 {[%emt 0:02:03]} (40. Rc3 $142 b4 41. Bxb4 Bxb4 42. Rxc4) 40... Bf5 $19 {[%emt 0:00:00]} 41. Rd2 {[%emt 0:01:38]} Be4+ {[%emt 0:00:00]} 42. Kf1 {[%emt 0:01:29]} Bd3+ {[%emt 0:00:00] A strong pair of Bishops.} 43. Kg2 {[%emt 0:01:43]} Be4+ {[%emt 0:00:31]} 44. Kf1 {[%emt 0:00:06]} Bd3+ {[%emt 0:01:49]} 45. Kg2 $1 {[%emt 0:00:44]} Re5 {[%emt 0:00:02] Black is clearly winning.} 46. g4 {[%emt 0:02:02]} Rxd5 {[%emt 0:00:33]} 47. Nf2 {[%emt 0:00:18]} b4 {[%emt 0:01:12][%cal Bb5b4,Bb4b3][%mdl 32] [#] Hoping for ...Bf1+.} 48. Nxd3 {[%emt 0:01:15]} cxd3 {[%emt 0:00:02]} 49. Bc7 {[%emt 0:01:07]} b3 {[%emt 0:00:08] Weighted Error Value: White=0.62/Black=0.52} 0-1

[Event "2nd Late Dr Abul K C Chess-ch B 2022"]
[Site "Dhaka"]
[Date "2022.07.06"]
[Round "7.3"]
[White "Dewan, Riad"]
[Black "Abdullah Al, Raison"]
[Result "1/2-1/2"]
[ECO "E05"]
[WhiteElo "1970"]
[BlackElo "1888"]
[Annotator "TA"]
[PlyCount "135"]
[EventDate "2022.07.03"]
[EventCountry "BAN"]
[SourceTitle "playchess.com"]
[Source "ChessBase"]
[SourceQuality "1"]
[TimeControl "5400+30"]

{[%evp 21,135,59,49,42,64,49,76,22,48,10,31,-20,42,34,56,0,96,95,97,31,38,0,0,0,0,0,0,0,0,0,31,15,14,0,0,0,0,-8,35,35,35,32,66,66,63,20,70,20,20,20,20,20,20,20,20,24,31,20,20,0,0,0,20,20,20,0,0,0,8,14,14,14,14,14,14,14,14,14,14,14,14,14,14,14,14,14,14,14,14,14,14,14,14,14,14,0,14,0,14,14,14,14,14,14,14,14,14,14,14,14,14,14,14,0,14,14]} 1. d4 {[%emt 1:31:00]} Nf6 {[%emt 0:02:19]} 2. c4 {[%emt 0:00:00]} e6 {[%emt 0:00:04]} 3. g3 {[%emt 0:00:00]} d5 {[%emt 0:00:12]} 4. Bg2 {[%emt 0:00:00]} Be7 {[%emt 0:00:03]} 5. Nf3 {[%emt 0:00:00]} O-O {[%emt 0:00:02]} 6. O-O {[%emt 0:00:00]} dxc4 {[%emt 0:00:02]} 7. Nbd2 {[%emt 0:00:00]} c5 {[%emt 0:11:44]} 8. Nxc4 {[%emt 0:00:00]} Nc6 {[%emt 0:02:14]} 9. dxc5 {[%emt 0:00:00]} Bxc5 {[%emt 0:01:14]} 10. a3 {[%emt 0:00:00]} a5 {[%emt 0:05:30]} 11. Qc2 {[%emt 0:00:00]} Qe7 {[%emt 0:00:12]} 12. Bg5 {[%emt 0:00:00] E05: Open Catalan: 5 Nf3 Be7.} h6 {[%emt 0:01:03]} 13. Bxf6 {[%emt 0:00:00]} Qxf6 {[%emt 0:00:03] [#]} 14. Ncd2 $146 {[%emt 0:00:00]} (14. e3 $16) ({Predecessor:} 14. Rfd1 e5 15. Qc3 Nd4 16. Rd2 Nxf3+ 17. Qxf3 Qxf3 18. Bxf3 Re8 19. Rd5 e4 20. Bxe4 Bxf2+ 21. Kxf2 Rxe4 {½-½ (28) Sowa,R-Herman,D Phoenix 2015}) 14... Qe7 {[%emt 0:04:03]} 15. Rac1 {[%emt 0:00:00]} Ba7 {[%emt 0:01:20]} 16. Nc4 {[%emt 0:00:00]} ({White should try} 16. Rfd1 $14) 16... Rd8 {[%emt 0:01:28]} (16... e5 $11) 17. Rfd1 $14 {[%emt 0:00:00]} Rd5 {[%emt 0:04:16]} 18. e4 {[%emt 0:00:00]} (18. e3 $14) 18... Nd4 {[%emt 0:02:52]} (18... Rxd1+ $11 {keeps the balance.} 19. Qxd1 (19. Rxd1 e5 $11) 19... e5) 19. Nxd4 {[%emt 0:00:00]} Rxd4 {[%emt 0:00:03]} 20. Nxa5 {[%emt 0:00:00]} (20. e5 $16) 20... e5 {[%emt 0:04:56]} 21. Nb3 {[%emt 0:00:00][%cal Ba5b3,Bb3d2,Bd2f3][%mdl 32]} Rxd1+ {[%emt 0:00:32]} 22. Qxd1 {[%emt 0:00:00]} Be6 {[%emt 0:00:08]} 23. Nd2 {[%emt 0:00:00]} Rd8 {[%emt 0:01:46]} 24. Qe2 {[%emt 0:00:00]} Qd7 {[%emt 0:11:13]} 25. Nf3 {[%emt 0:00:00]} f6 {[%emt 0:00:07]} 26. Bf1 {[%emt 0:00:00][%cal Bg2f1,Bf1b5,Bb5c4][%mdl 32]} Kh7 {[%emt 0:00:55]} 27. Qb5 {[%emt 0:00:00]} Qxb5 {[%emt 0:03:01]} 28. Bxb5 {[%emt 0:00:00]} Bg4 {[%emt 0:00:07]} 29. Rc3 {[%emt 0:00:00]} Bxf3 {[%emt 0:08:31]} (29... f5 {looks sharper.} 30. Nxe5 Rd1+ 31. Kg2 Bd4) 30. Rxf3 $11 {[%emt 0:00:00][%mdl 4096] Endgame KRB-KRB} Rd2 {[%emt 0:00:02]} 31. b3 {[%emt 0:00:00]} Kg8 {[%emt 0:00:49]} 32. Bc4+ {[%emt 0:00:00]} Kf8 {[%emt 0:00:02]} 33. Kf1 {[%emt 0:00:00]} Ke7 {[%emt 0:00:09]} (33... Bd4 $11) 34. h3 {[%emt 0:00:00]} ({White should play} 34. Bd5 $14) 34... Bd4 {[%emt 0:00:48]} 35. g4 {[%emt 0:00:37]} Rb2 {[%emt 0:02:28]} 36. a4 {[%emt 0:01:08]} b6 {[%emt 0:00:26]} 37. Kg2 {[%emt 0:01:28]} Ra2 {[%emt 0:02:59]} 38. h4 {[%emt 0:00:17]} g5 {[%emt 0:00:18]} 39. hxg5 {[%emt 0:00:17]} hxg5 {[%emt 0:00:01] The position is equal.} 40. Kf1 {[%emt 0:01:17]} Ra1+ {[%emt 0:01:56]} 41. Kg2 {[%emt 0:01:37]} Ra2 {[%emt 0:00:01]} 42. Bd5 {[%emt 0:00:30]} Rc2 {[%emt 0:00:37]} 43. Kf1 {[%emt 0:00:12]} Rc1+ {[%emt 0:01:04]} 44. Ke2 {[%emt 0:03:21]} Rc2+ {[%emt 0:01:07]} 45. Kd1 {[%emt 0:00:44]} Rxf2 {[%emt 0:00:18]} 46. Rxf2 {[%emt 0:00:35]} Bxf2 {[%emt 0:00:07] KB-KB} 47. b4 {[%emt 0:00:18]} Kd6 {[%emt 0:01:03]} 48. Ke2 {[%emt 0:01:03]} Bg1 {[%emt 0:05:52]} 49. Kd3 {[%emt 0:00:11]} Bf2 {[%emt 0:00:03]} 50. Kc4 {[%emt 0:00:49]} Be3 {[%emt 0:00:03]} 51. Kb5 {[%emt 0:02:12]} Kc7 {[%emt 0:00:01]} 52. Be6 {[%emt 0:00:39]} Bf2 {[%emt 0:01:19]} 53. Bf7 {[%emt 0:00:21]} Be3 {[%emt 0:00:09]} 54. Kc4 {[%emt 0:00:57]} Kd6 {[%emt 0:25:48]} 55. Be8 {[%emt 0:00:59]} Bf2 {[%emt 0:00:00]} 56. Kb5 {[%emt 0:00:08]} Kc7 {[%emt 0:00:00]} 57. Ka6 {[%emt 0:00:38]} Be1 {[%emt 0:00:00]} 58. Kb5 {[%emt 0:01:32]} Bf2 {[%emt 0:00:00]} 59. Kc4 {[%emt 0:00:17]} Kd6 {[%emt 0:00:00]} 60. a5 {[%emt 0:00:03]} bxa5 {[%emt 0:00:00]} 61. bxa5 {[%emt 0:00:02]} Be3 {[%emt 0:00:00]} 62. Kb5 {[%emt 0:00:16]} Kc7 {[%emt 0:00:00]} 63. Bc6 {[%emt 0:00:51]} Bf2 {[%emt 0:00:00]} 64. Bd5 {[%emt 0:00:08]} Be3 {[%emt 0:00:00]} 65. Bb3 {[%emt 0:00:15]} Bf2 {[%emt 0:00:00]} 66. a6 {[%emt 0:00:13]} Ba7 {[%emt 0:00:00]} 67. Kc4 {[%emt 0:00:27]} Kd6 {[%emt 0:00:00]} 68. Ba4 {[%emt 0:01:00] Weighted Error Value: White=0.12 (very precise) /Black=0.10 (very precise)} 1/2-1/2

[Event "2nd Late Dr Abul K C Chess-ch B 2022"]
[Site "Dhaka"]
[Date "2022.07.06"]
[Round "7.4"]
[White "Md Nasir Uddin"]
[Black "Rahman, Saimon Siddiqur"]
[Result "1/2-1/2"]
[ECO "C02"]
[WhiteElo "1876"]
[BlackElo "1983"]
[Annotator "TA"]
[PlyCount "127"]
[EventDate "2022.07.03"]
[EventCountry "BAN"]
[SourceTitle "playchess.com"]
[Source "ChessBase"]
[SourceQuality "1"]
[TimeControl "5400+30"]

{[%evp 11,127,12,53,14,52,18,15,4,0,-17,24,0,-4,-56,93,0,171,-60,-62,-170,21,29,25,27,53,48,90,89,85,81,99,81,115,101,147,152,137,81,145,145,150,127,131,135,138,120,144,122,129,117,126,119,122,122,158,131,137,139,186,187,251,269,407,54,54,34,45,18,58,56,283,27,43,19,56,47,56,56,58,53,122,116,120,114,119,89,72,29,110,99,108,0,194,190,170,98,457,457,435,115,429,408,366,194,246,0,0,0,0,0,0,0,0,0,0,0,0,0]} 1. e4 {[%emt 1:31:00][%cal Be2e4,Be4e5][%mdl 32]} e6 {[%emt 0:05:45]} 2. d4 {[%emt 0:00:00]} d5 {[%emt 0:00:01]} 3. e5 {[%emt 0:00:00]} c5 {[%emt 0:00:12]} 4. c3 {[%emt 0:00:00]} Nc6 {[%emt 0:00:19]} 5. Nf3 {[%emt 0:00:00]} Nge7 {[%emt 0:01:39]} 6. Bd3 {[%emt 0:00:00]} Ng6 {[%emt 0:01:20]} 7. a3 {[%emt 0:00:00] C02: French: Advance Variation.} Be7 {[%emt 0:01:39]} 8. O-O {[%emt 0:00:00]} (8. h4 $5) 8... Bd7 {[%emt 0:01:16]} 9. Re1 {[%emt 0:00:00]} Qb6 {[%emt 0:00:57][%cal Rc5d4]} 10. Bc2 {[%emt 0:00:00]} Rc8 {[%emt 0:00:04]} 11. g3 {[%emt 0:00:00] [#]} O-O $146 {[%emt 0:04:27]} ({Predecessor:} 11... a5 12. Ra2 h6 13. Be3 cxd4 14. cxd4 Qa6 15. Nc3 Na7 16. Kh1 b5 17. Bxg6 fxg6 {1-0 (53) Pekarek,A (2040)-Fialka,A (1842) Bohumin 2020}) 12. Kg2 {[%emt 0:00:00]} (12. Ra2 $11) 12... Rc7 {[%emt 0:03:51]} (12... cxd4 $15 {stays ahead.} 13. cxd4 f6 14. Bxg6 hxg6) 13. h4 {[%emt 0:00:00]} (13. dxc5 $1 $16 Qxc5 14. b4) 13... Rfc8 $2 {[%emt 0:00:03]} (13... cxd4 $11 {and Black is okay.} 14. h5 Nh8) 14. Bd3 $2 {[%emt 0:00:00]} ({White should play} 14. h5 $18) 14... cxd4 $15 {[%emt 0:00:13]} 15. cxd4 {[%emt 0:00:00] [#]} (15. h5 $15 Nf8 16. h6) 15... Na5 $2 {[%emt 0:00:22]} (15... Ncxe5 $1 $19 {[%mdl 512]} 16. Nc3 Nxf3 17. Qxf3 Qxd4) 16. Nc3 $11 {[%emt 0:00:00]} Nb3 {[%emt 0:00:35]} 17. Ra2 {[%emt 0:00:00]} a6 {[%emt 0:11:45]} 18. Be3 {[%emt 0:00:00]} Na5 {[%emt 0:00:50]} 19. h5 {[%emt 0:00:00][%cal Bh4h5,Bh5h6][%mdl 32]} Nf8 {[%emt 0:00:01]} 20. h6 {[%emt 0:00:00] Strongly threatening hxg7.} g6 {[%emt 0:00:02]} 21. Bg5 {[%emt 0:00:00]} Be8 {[%emt 0:10:20]} 22. Qd2 {[%emt 0:00:00] Hoping for Bxe7.} Bxg5 {[%emt 0:03:17]} (22... Nb3 $142 23. Qf4 Bxg5 24. Qxg5 f5) 23. Qxg5 $16 {[%emt 0:00:00] Threatening mate with Qf6.} Nd7 {[%emt 0:00:03] Inhibits Qf6.} 24. Qe7 {[%emt 0:00:00]} (24. Bc2 $142) 24... Nc6 {[%emt 0:02:23]} (24... Rc6 $142) 25. Qh4 {[%emt 0:00:00]} Ncb8 {[%emt 0:01:26]} 26. Re2 {[%emt 0:00:00]} Rc6 {[%emt 0:01:33]} 27. Ra1 {[%emt 0:00:00]} Qd8 {[%emt 0:00:01]} 28. Qf4 {[%emt 0:00:00] 0x0.0019e9731139dp-1022s more active pieces.} b5 {[%emt 0:02:29]} 29. Rae1 {[%emt 0:00:00]} Nb6 {[%emt 0:01:23]} 30. Na2 {[%emt 0:00:00]} Qe7 {[%emt 0:04:51]} 31. Nh2 {[%emt 0:00:00]} R6c7 {[%emt 0:01:39]} 32. Ng4 {[%emt 0:00:00]} N8d7 {[%emt 0:04:58]} 33. Rc1 {[%emt 0:00:00]} Rxc1 {[%emt 0:01:15]} 34. Nxc1 {[%emt 0:00:00]} Na4 {[%emt 0:02:08]} (34... Kh8 $16 35. Rc2 Rxc2 36. Bxc2 Nb8) 35. Nb3 $18 {[%emt 0:00:00]} Ndb6 {[%emt 0:07:51]} (35... Rc7 {was necessary.} 36. Qd2 Ndb6) 36. Na5 {[%emt 0:00:00]} ({Don't play} 36. Nf6+ $6 Kh8 37. Nxe8 Rxe8 $18) 36... Nc4 {[#]} (36... Nd7 {was worth a try.} 37. Nb7 Rc6) 37. Nxc4 $2 {[%emt 0:00:00]} (37. Nb7 $1 $18 {[%mdl 512]}) 37... bxc4 $14 {[%emt 0:08:18]} 38. Bb1 {[%emt 0:00:00]} Bc6 {[%emt 0:02:15]} 39. Qd2 {[%emt 0:00:00]} Bb5 {[%emt 0:00:43]} 40. Re3 {[%emt 0:00:00] Against c3} Qg5 $2 {[%emt 0:00:49]} (40... Nb6 $14) 41. f3 $2 {[%emt 0:00:00]} (41. Nf6+ $18 Kh8 42. Qb4) 41... Qe7 {[%emt 0:04:13]} 42. Qc1 {[%emt 0:00:00]} Rc6 {[%emt 0:00:49]} 43. Bc2 {[%emt 0:00:00][%cal Bb1c2,Bc2d1,Bd1a4][%mdl 32]} Nb6 {[%emt 0:01:10]} 44. Rc3 {[%emt 0:00:00]} Rc8 {[%emt 0:04:13]} 45. Bd1 {[%emt 0:00:00]} Nd7 {[%emt 0:00:36]} (45... Qf8 $14) 46. b3 $16 {[%emt 0:00:00] aiming for a4.} a5 {[%emt 0:00:22]} 47. bxc4 {[%emt 0:00:00]} Bxc4 {[%emt 0:00:33]} 48. Ba4 {[%emt 0:00:00] Black must now prevent Bxd7.} Nb6 {[%emt 0:00:11]} 49. Bb5 {[%emt 0:00:00]} Rd8 {[%emt 0:01:24]} (49... a4 $11) 50. Nf6+ {[%emt 0:00:00]} Kh8 {[%emt 0:00:01]} 51. Qb2 {[%emt 0:00:00]} (51. Bxc4 $16 dxc4 52. Ne4) 51... Bxb5 $2 {[%emt 0:00:12]} (51... a4 $11) 52. Qxb5 $18 {[%emt 0:00:00]} Nc4 {[%emt 0:00:01] [#]} 53. g4 {[%emt 0:00:00]} (53. Ng4 $1 $18) 53... Nxa3 $2 {[%emt 0:01:39][%mdl 8192]} (53... Qf8 $16 {is a better chance.} 54. g5 Rc8) 54. Qxa5 {[%emt 0:00:00] Intending Rc7 and mate.} Nc4 {[%emt 0:00:02] [#]} 55. Qa4 {[%emt 0:00:00]} (55. Qc5 $1 $18 {[%cal Rc5e7]} Qf8 56. Qxf8+ Rxf8 57. Rb3) 55... Nb6 $2 {[%emt 0:02:18][%mdl 8192]} (55... Qf8 $16) 56. Qb5 {[%emt 0:00:00]} Nc4 {[%emt 0:01:07]} 57. Rb3 {[%emt 0:00:00]} (57. Qc5 $142 Qf8 58. Qxf8+ Rxf8 59. Kg3) 57... Qa7 {[%emt 0:00:03]} (57... Qf8 $142) 58. Qb4 $2 {[%emt 0:00:00]} (58. Qb7 $18 Qxd4 59. Qxf7 Qd2+ 60. Kg3 Qe1+ 61. Kh3 Qh1+ 62. Kg3 Qe1+ 63. Kg2 Qe2+ 64. Kh1 Qe1+ 65. Kh2 Qe2+ 66. Kh3 Qf1+ 67. Kh2 Qe2+ 68. Kh3 Qf1+ 69. Kg3 Qe1+) 58... Qxd4 $11 {[%emt 0:03:01] The position is equal.} 59. Qe7 {[%emt 0:00:00][%cal Re7d8]} Qd2+ {[%emt 0:00:14]} 60. Kg3 $1 {[%emt 0:00:00][%cal Re7d8]} Qe1+ {[%emt 0:00:02]} 61. Kh3 $1 {[%emt 0:00:00][%cal Re7d8] Dancing on a razor blade.} Qh1+ {[%emt 0:00:54]} 62. Kg3 {[%emt 0:00:00][%cal Re7d8]} Qe1+ {[%emt 0:00:21]} 63. Kh3 $1 {[%emt 0:00:00][%cal Re7d8]} Qh1+ {[%emt 0:01:04]} 64. Kg3 {[%emt 0:00:00] White really could win this.  Weighted Error Value: White=0.49/Black=0.68} 1/2-1/2